bitfinex/quotes_ETHUSD_20220106
["timestamp","ask_amount","ask_price","bid_price","bid_amount"]
[1641457798262,1.75955,3425.8,3425.7,1.10543449]
[1641457798466,1.75955,3425.8,3425.7,4.22595452]
[1641457798864,1.75955,3425.8,3425.7,3.12052003]
[1641457799263,1.75955,3425.8,3425.7,3.47152003]
[1641457801019,1.75955,3425.8,3425.7,4.95567323]
[1641457801416,1.75955,3425.8,3425.7,3.47152003]
[1641457803628,1.75955,3425.8,3425.7,3.50401444]
[1641457803925,1.75955,3425.8,3425.7,3.47152003]
[1641457804363,1.75955,3425.8,3425.7,3.12052003]
[1641457804566,1.75955,3425.8,3425.5,1.48415635]
[1641457804567,0.3,3425.7,3425.5,1.48415635]
[1641457804769,0.3,3425.7,3425.6,0.06715635]
[1641457805067,2.48995,3425.7,3425.0,2.96833253]
[1641457805468,0.73,3425.5,3425.0,2.96833253]
[1641457805668,2.49074582,3425.3,3425.0,2.96833253]
[1641457805868,2.79074582,3425.3,3425.0,2.96833253]
[1641457806271,2.06074582,3425.3,3424.7,5.8399]
[1641457806469,0.73001,3425.1,3424.7,5.8399]
[1641457806870,4.84201793,3425.0,3424.7,5.4303]
[1641457807070,6.8388,3424.9,3424.7,5.4303]
[1641457807470,0.7302,3424.7,3424.2,2.96833253]
[1641457807670,1.77598749,3424.4,3424.1,2.96833253]
[1641457807929,2.07598749,3424.4,3424.3,0.00284212]
[1641457808624,3.80619749,3424.4,3424.3,0.00284212]
[1641457808823,3.80619749,3424.4,3423.7,2.96833253]
[1641457808824,8.19409949,3424.4,3423.7,2.96833253]
[1641457809020,0.73034,3424.2,3423.7,2.96833253]
[1641457809220,0.73034,3424.2,3423.8,0.00284211]
[1641457809420,0.05401436,3424.0,3423.8,0.00284211]
[1641457809923,0.05401436,3424.0,3423.7,0.00341054]
[1641457810124,0.35401436,3424.0,3423.7,0.00341054]
[1641457810323,0.73028,3423.9,3423.7,0.00341054]
[1641457810923,0.73028,3423.9,3423.4,0.00511581]
[1641457811124,0.73031,3423.8,3423.4,0.00511581]
[1641457811331,0.73029,3423.7,3423.4,0.00511581]
[1641457811526,1.03029,3423.7,3423.4,0.00511581]
[1641457811761,1.62057948,3423.5,3423.4,0.00511581]
[1641457811965,1.62057948,3423.5,3423.2,0.73656265]
[1641457812163,1.62057948,3423.5,3423.3,0.00568423]
[1641457812364,0.73035,3423.4,3423.3,0.00568423]
[1641457812564,1.03035,3423.4,3423.3,0.00568423]
[1641457812964,1.03035,3423.4,3423.2,0.00625265]
[1641457813167,0.3,3423.3,3423.1,0.00682108]
[1641457814666,0.05401436,3423.2,3423.1,0.00682108]
[1641457816917,0.05401436,3423.2,3423.1,1.49242133]
[1641457817116,0.01511234,3423.2,3423.1,1.49242133]
[1641457817317,5.85391234,3423.2,3423.1,1.49242133]
[1641457817716,6.85391234,3423.2,3423.1,0.00682108]
[1641457819175,6.85391234,3423.2,3422.7,1.98080034]
[1641457819363,6.85391234,3423.2,3422.8,1.48566237]
[1641457819364,1.46115,3423.0,3422.8,1.48566237]
[1641457819567,0.3,3422.9,3422.8,1.48736764]
[1641457819767,2.28161235,3422.9,3422.8,1.48736764]
[1641457819967,8.14848527,3422.9,3422.8,1.48736764]
[1641457820169,9.14848527,3422.9,3422.8,1.48736764]
[1641457820372,13.3667781,3422.9,3422.3,2.96833253]
[1641457820570,0.73077,3422.6,3422.3,2.96833253]
[1641457820770,4.45512059,3422.5,3422.4,0.00227369]
[1641457820971,4.75512059,3422.5,3422.0,1.08119381]
[1641457821271,2.18346759,3422.4,3422.1,0.00170527]
[1641457821475,5.8388,3422.3,3422.1,0.00170527]
[1641457821673,7.3004,3422.3,3422.1,0.00170527]
[1641457821869,7.3004,3422.3,3422.0,0.0022737]
[1641457822470,6.56959,3422.3,3422.0,0.0022737]
[1641457823416,6.56959,3422.3,3421.9,0.00284212]
[1641457823815,6.56959,3422.3,3421.7,0.00397897]
[1641457823816,0.73064,3422.1,3421.7,0.00397897]
[1641457824016,1.03064,3422.1,3421.7,0.00397897]
[1641457824417,0.3,3422.1,3421.8,0.73058]
[1641457824617,5.8388,3422.3,3421.8,0.73058]
[1641457824618,6.1388,3422.3,3421.9,1.3434842]
[1641457824819,5.8388,3422.3,3421.9,1.69732632]
[1641457825018,5.8388,3422.3,3422.0,0.0022737]
[1641457825319,0.01511234,3422.2,3422.1,0.351]
[1641457825517,0.01511234,3422.2,3422.1,0.651]
[1641457825718,0.01511234,3422.2,3422.1,2.5570638]
[1641457825918,5.8438,3422.5,3422.1,2.5570638]
[1641457826119,6.1438,3422.5,3422.1,2.5570638]
[1641457826318,5.8438,3422.5,3422.2,0.00113685]
[1641457826518,5.8438,3422.5,3422.3,0.351]
[1641457826767,5.8438,3422.5,3422.3,2.11154]
[1641457827162,1.8349924,3423.6,3423.3,2.26445912]
[1641457827361,1.8349924,3423.6,3423.0,0.351]
[1641457827562,1.8349924,3423.6,3423.0,1.81154]
[1641457827773,0.00795793,3423.8,3423.0,1.81154]
[1641457827774,0.73028,3423.7,3423.0,1.81154]
[1641457827964,0.00795793,3423.8,3423.0,1.81154]
[1641457828163,0.3,3423.5,3423.0,1.81154]
[1641457828362,0.0073895,3423.7,3423.0,3.02867757]
[1641457828563,0.00568423,3423.4,3423.0,3.02867757]
[1641457828763,0.00682108,3423.6,3423.1,2.22808799]
[1641457828962,3.37497489,3423.9,3423.2,0.73024]
[1641457828963,0.00511581,3423.3,3423.2,0.73024]
[1641457829164,3.37497489,3423.9,3423.2,0.73024]
[1641457829165,0.00625266,3423.5,3423.2,0.73024]
[1641457829366,0.00511581,3423.3,3423.2,0.73024]
[1641457829567,0.00568423,3423.4,3423.2,1.08124]
[1641457829767,0.3,3423.8,3423.2,1.79384]
[1641457829768,0.00511581,3423.3,3423.2,1.79384]
[1641457829967,0.10667894,3424.6,3424.0,1.00017807]
[1641457830169,1.75454791,3425.1,3424.0,1.00017807]
[1641457830412,5.8402,3425.0,3424.6,1.24043999]
[1641457830717,5.8402,3425.0,3424.6,1.85233999]
[1641457830718,0.00795793,3424.7,3424.6,1.85233999]
[1641457830915,0.00795793,3424.7,3424.6,2.5428678]
[1641457831118,5.8402,3425.0,3424.6,4.28516351]
[1641457831317,5.8402,3425.0,3424.7,1.89336156]
[1641457831520,0.00357684,3425.0,3424.8,0.351]
[1641457831714,0.00357684,3425.0,3424.8,1.8104573]
[1641457831920,5.4403,3426.1,3424.9,6.97690962]
[1641457832119,6.17,3426.2,3425.6,1.5149041]
[1641457832317,0.00625266,3426.0,3425.8,0.4643066]
[1641457832518,0.00625266,3426.0,3425.9,0.8153066]
[1641457832716,6.17,3426.2,3425.9,0.8153066]
[1641457832918,6.17,3426.2,3426.1,0.4643066]
[1641457833219,6.17,3426.2,3426.1,0.8153066]
[1641457834267,6.17,3426.2,3426.1,1.5449666]
[1641457834472,6.24128626,3426.2,3426.1,1.5449666]
[1641457834671,6.54128626,3426.2,3426.1,1.5449666]
[1641457835073,6.54128626,3426.2,3426.1,2.58868477]
[1641457835272,6.54128626,3426.2,3426.1,1.5449666]
[1641457837473,6.54128626,3426.2,3426.1,0.8153066]
[1641457837674,8.02174133,3426.2,3426.1,2.49942426]
[1641457837912,9.02174133,3426.2,3426.1,2.49942426]
[1641457838113,9.02174133,3426.2,3426.1,2.14842426]
[1641457838611,9.02174133,3426.2,3425.6,0.351]
[1641457838813,0.72987,3426.0,3425.6,0.351]
[1641457839011,0.72987,3426.0,3425.3,1.44912843]
[1641457839012,1.91363626,3425.9,3425.3,1.44912843]
[1641457839417,1.91363626,3425.9,3425.1,0.351]
[1641457839418,0.7299,3425.7,3425.1,0.351]
[1641457839619,1.0299,3425.7,3425.1,0.351]
[1641457839817,0.00397897,3425.6,3425.1,0.351]
[1641457840016,0.72989,3425.5,3425.1,0.351]
[1641457840216,0.73330054,3425.5,3425.1,0.351]
[1641457840417,0.00284212,3425.4,3425.1,0.351]
[1641457840817,0.0022737,3425.3,3425.1,0.351]
[1641457841017,1.6164462,3425.3,3425.1,0.351]
[1641457841218,0.00170527,3425.2,3425.1,0.351]
[1641457842466,0.00170527,3425.2,3425.1,1.08081]
[1641457843471,0.00170527,3425.2,3425.1,3.07570912]
[1641457843869,0.00170527,3425.2,3425.1,2.47570912]
[1641457844268,0.00170527,3425.2,3425.1,3.12670912]
[1641457844467,0.035352,3425.6,3425.3,0.7296329]
[1641457844669,1.32635093,3426.5,3426.4,1.14657235]
[1641457844879,1.32635093,3426.5,3426.4,2.39757235]
[1641457845268,0.53215093,3426.5,3426.4,2.39757235]
[1641457845518,1.36981691,3426.9,3426.5,2.03925462]
[1641457845715,1.36981691,3426.9,3426.7,0.72938]
[1641457845915,1.36981691,3426.9,3426.8,0.351]
[1641457846314,1.37948011,3426.9,3426.8,0.351]
[1641457846719,0.06662628,3426.9,3426.0,0.351]
[1641457846918,0.06662628,3426.9,3425.8,2.20829042]
[1641457846919,4.41823928,3426.9,3426.1,5.8375]
[1641457847119,6.25028217,3426.8,3426.1,5.8375]
[1641457847317,7.25028217,3426.8,3426.1,5.8375]
[1641457847523,0.72969,3426.6,3426.4,2.89895189]
[1641457847719,5.8369,3426.5,3426.4,2.89895189]
[1641457847918,6.14428951,3426.5,3426.4,2.89895189]
[1641457848118,7.14428951,3426.5,3426.4,2.89895189]
[1641457848722,7.14428951,3426.5,3426.1,5.8375]
[1641457848920,1.72978,3426.4,3426.1,5.8375]
[1641457849168,2.46638109,3426.4,3426.1,5.8375]
[1641457849371,0.00625266,3426.3,3426.1,5.8375]
[1641457849572,0.3,3426.2,3426.1,5.8375]
[1641457849772,0.30568424,3426.2,3426.1,5.8375]
[1641457851375,0.00568424,3426.2,3426.1,5.8375]
[1641457852374,0.06269736,3426.2,3426.1,5.8375]
[1641457853620,0.06269736,3426.2,3426.1,0.8375]
[1641457856222,0.06269736,3426.2,3426.1,1.1885]
[1641457856421,5.8369,3426.5,3426.1,2.67293508]
[1641457856671,5.8369,3426.5,3426.2,0.03618512]
[1641457856872,0.00113685,3426.4,3426.3,1.58570249]
[1641457857073,5.8369,3426.5,3426.3,1.58570249]
[1641457857074,5.8369,3426.5,3426.3,3.23325578]
[1641457857275,6.17,3426.8,3426.4,10.837]
[1641457857473,6.17,3426.8,3426.6,0.72941]
[1641457857673,6.17,3426.8,3426.7,0.351]
[1641457858074,6.17227369,3426.8,3426.7,0.351]
[1641457858278,6.21783396,3426.8,3426.7,0.351]
[1641457858676,6.21783396,3426.8,3426.4,10.837]
[1641457858880,1.0,3426.7,3426.4,10.837]
[1641457859078,0.72976,3426.6,3426.4,10.837]
[1641457859278,0.31379708,3426.6,3426.4,0.4643066]
[1641457859479,0.61379708,3426.6,3426.4,0.4643066]
[1641457859678,0.31379708,3426.6,3426.4,0.4643066]
[1641457859879,11.6738,3426.5,3426.4,0.4643066]
[1641457860080,14.29772691,3426.5,3426.4,0.4643066]
[1641457860281,14.46267519,3426.5,3426.4,0.4643066]
[1641457860518,20.17297928,3426.5,3425.7,1.48437049]
[1641457860716,0.72997,3426.1,3425.7,1.48437049]
[1641457860919,1.02992,3426.0,3425.8,0.00341054]
[1641457861314,1.87491531,3425.9,3425.8,0.00341054]
[1641457861617,2.87491531,3425.9,3425.8,0.00341054]
[1641457862415,3.60479531,3425.9,3425.6,0.00454739]
[1641457862615,0.3,3425.8,3425.4,0.00568424]
[1641457862819,0.72989,3425.7,3425.4,1.49005473]
[1641457863219,0.72989,3425.7,3425.5,0.00511582]
[1641457863819,1.45978,3425.7,3425.5,0.00511582]
[1641457864019,0.3,3425.6,3425.5,0.00511582]
[1641457864473,0.6,3425.6,3425.5,0.00511582]
[1641457864669,0.6,3425.6,3425.2,1.97896149]
[1641457864670,9.75,3425.5,3425.2,1.97896149]
[1641457864870,9.75,3425.5,3424.9,2.96844224]
[1641457864871,9.46250097,3425.3,3424.9,2.96844224]
[1641457865072,9.46250097,3425.3,3424.6,0.99178721]
[1641457865073,4.66447892,3425.2,3424.6,0.99178721]
[1641457865271,14.62615542,3425.2,3424.6,0.99178721]
[1641457865470,2.08514922,3425.1,3424.1,7.45252515]
[1641457865677,0.7302635,3424.7,3423.6,2.50012713]
[1641457865873,2.19075,3424.8,3424.2,0.00284212]
[1641457866075,2.19075,3424.5,3424.2,0.00284212]
[1641457866372,1.7605,3424.4,3424.2,0.00284212]
[1641457866574,2.0605,3424.4,3424.2,0.00284212]
[1641457866773,3.0605,3424.4,3424.2,0.00284212]
[1641457867177,2.2025048,3424.3,3424.2,0.00284212]
[1641457867575,3.2025048,3424.3,3424.2,0.00284212]
[1641457868019,0.73023,3424.0,3423.5,0.00682108]
[1641457868416,0.3,3423.9,3423.5,0.00682108]
[1641457868816,1.6590923,3423.6,3423.5,0.00682108]
[1641457869822,1.46044,3423.8,3423.5,0.00682108]
[1641457870022,0.73023,3424.0,3423.5,0.00682108]
[1641457870023,0.3,3423.7,3423.6,0.351]
[1641457870226,0.34587223,3423.7,3423.6,0.351]
[1641457870422,0.73,3424.6,3423.6,6.19895266]
[1641457870626,0.73,3424.6,3424.0,0.73]
[1641457870828,0.73,3424.6,3424.0,1.081]
[1641457871022,1.60909111,3424.3,3424.1,0.00341054]
[1641457871222,1.60909111,3424.3,3424.1,0.73341354]
[1641457871712,1.60909111,3424.3,3424.2,0.73002]
[1641457872817,1.90909111,3424.3,3424.2,0.73002]
[1641457873717,1.90909111,3424.3,3424.1,0.00341054]
[1641457873718,2.63919111,3424.3,3424.1,0.00341054]
[1641457874716,2.63919111,3424.3,3424.2,2.88018105]
[1641457875117,0.7301,3424.3,3424.2,2.88018105]
[1641457875317,0.7301,3424.3,3424.2,4.86027025]
[1641457875920,0.76672516,3424.3,3424.2,4.86027025]
[1641457876119,2.96829024,3424.3,3424.2,4.86027025]
[1641457876320,3.26829024,3424.3,3424.2,2.88018105]
[1641457879973,3.26829024,3424.3,3424.2,4.36534371]
[1641457880778,3.26829024,3424.3,3424.2,2.88018105]
[1641457881773,3.26829024,3424.3,3424.2,4.36534371]
[1641457882777,4.26829024,3424.3,3424.2,2.88018105]
[1641457883018,3.26829024,3424.3,3424.2,2.88018105]
[1641457885125,3.26829024,3424.3,3424.2,4.36534371]
[1641457887074,4.26829024,3424.3,3424.2,4.36534371]
[1641457887277,4.26829024,3424.3,3424.2,2.88018105]
[1641457887478,4.26829024,3424.3,3424.1,1.4885732]
[1641457887479,14.68338229,3424.3,3424.1,1.4885732]
[1641457887675,14.68338229,3424.3,3423.6,8.81178997]
[1641457887676,5.20639854,3424.2,3423.6,8.81178997]
[1641457887877,0.73041,3424.0,3423.6,8.81178997]
[1641457888084,6.20381151,3424.0,3423.6,2.97038367]
[1641457888283,0.00113684,3423.9,3423.6,0.0002937]
[1641457888482,5.8407,3423.8,3423.6,0.0002937]
[1641457888684,1.0,3423.7,3423.2,2.97008997]
[1641457888883,2.4609327,3423.7,3423.2,2.97008997]
[1641457889086,1.73045,3423.7,3423.3,0.00227369]
[1641457889283,7.70661168,3423.6,3423.3,0.00227369]
[1641457889484,5.12605058,3423.5,3423.2,2.97008997]
[1641457889683,5.8407,3423.4,3423.2,2.97008997]
[1641457889890,5.8407,3423.4,3422.7,1.08517726]
[1641457889891,7.30186,3423.4,3422.7,1.08517726]
[1641457890086,0.73062,3423.1,3422.7,1.08517726]
[1641457890283,11.683,3423.0,3422.8,0.00284212]
[1641457890520,1.70067992,3422.9,3422.8,0.00284212]
[1641457890717,7.84137992,3422.9,3422.8,0.00284212]
[1641457891121,7.84137992,3422.9,3422.0,1.46832951]
[1641457891321,1.83250447,3422.2,3422.0,1.46832951]
[1641457891524,0.3,3422.2,3422.1,0.00682108]
[1641457892022,0.3,3422.6,3422.1,0.00682108]
[1641457892322,0.3,3422.6,3422.3,0.73048]
[1641457892622,1.99786904,3422.5,3422.4,0.00511581]
[1641457892822,1.99786904,3422.5,3422.4,1.13207183]
[1641457893422,1.99786904,3422.5,3422.4,0.00511581]
[1641457893828,1.99786904,3422.5,3422.1,0.00682108]
[1641457893829,2.72838904,3422.5,3422.1,0.00682108]
[1641457894024,1.99786904,3422.5,3422.3,0.00568424]
[1641457894278,1.99786904,3422.5,3422.1,0.00682108]
[1641457894682,1.99786904,3422.5,3422.2,0.7305]
[1641457895082,1.99786904,3422.5,3422.3,0.00568424]
[1641457897088,1.99786904,3422.5,3422.1,0.00682108]
[1641457897485,1.99786904,3422.5,3421.9,0.35895793]
[1641457897786,1.99786904,3422.5,3422.0,1.46832951]
[1641457898024,1.99786904,3422.5,3422.1,1.47293482]
[1641457898223,1.99786904,3422.5,3422.1,2.2102759]
[1641457898425,2.29786904,3422.5,3422.2,0.00625266]
[1641457899225,2.29786904,3422.5,3422.3,0.73045]
[1641457899429,0.03680343,3422.6,3422.3,0.73045]
[1641457899637,0.03680343,3422.6,3422.4,0.00511581]
[1641457899931,0.03680343,3422.6,3422.4,0.35611581]
[1641457900329,0.03680343,3422.6,3422.5,0.00454739]
[1641457904080,0.3,3422.7,3422.5,0.00454739]
[1641457904479,0.3,3422.7,3422.5,0.73495739]
[1641457904882,0.3,3422.7,3422.6,0.00397897]
[1641457906322,0.73045,3422.6,3422.4,0.73047]
[1641457906526,1.03045,3422.7,3422.4,0.73047]
[1641457906725,1.03045,3422.7,3422.5,0.00454739]
[1641457907129,5.25228031,3422.7,3422.5,0.00454739]
[1641457907428,5.25228031,3422.7,3422.1,0.00682108]
[1641457907429,1.46134,3422.5,3422.1,0.00682108]
[1641457907626,0.3,3422.4,3422.1,0.00682108]
[1641457908225,2.11290842,3422.3,3422.1,0.00682108]
[1641457909275,2.84355842,3422.3,3422.1,0.00682108]
[1641457909478,2.84355842,3422.3,3422.2,2.06734241]
[1641457909878,4.30487842,3422.3,3422.2,2.07359507]
[1641457910579,4.33871364,3422.3,3422.2,2.07359507]
[1641457912381,0.76448522,3422.3,3422.2,2.07359507]
[1641457912583,0.69448522,3422.3,3422.2,2.07359507]
[1641457913026,0.03383522,3422.3,3422.2,2.07359507]
[1641457913827,0.03288651,3422.3,3422.2,2.07359507]
[1641457914023,0.03288651,3422.3,3422.2,5.01960188]
[1641457914225,8.651e-05,3422.3,3422.2,5.01960188]
[1641457914423,5.8407,3422.9,3422.2,5.01960188]
[1641457914826,5.8407,3422.9,3422.4,1.4608]
[1641457915231,5.8407,3422.9,3422.5,0.00454739]
[1641457915431,1.95985147,3422.6,3422.5,0.00454739]
[1641457915629,1.95985147,3422.6,3422.5,0.73494739]
[1641457915829,2.25985147,3422.6,3422.5,0.73494739]
[1641457916672,2.29368277,3422.6,3422.5,4.78331674]
[1641457917073,2.29368277,3422.6,3422.5,2.71597433]
[1641457917879,2.29368277,3422.6,3422.5,4.78331674]
[1641457918280,0.3338313,3422.6,3422.5,4.78331674]
[1641457918580,0.0338313,3422.6,3422.5,2.8022898]
[1641457921128,5.7739,3422.9,3422.5,2.8022898]
[1641457921330,5.7739,3422.9,3422.7,0.7302993]
[1641457921530,5.7739,3422.9,3422.8,2.12784917]
[1641457921728,6.0739,3422.9,3422.8,2.12784917]
[1641457921927,6.10772906,3422.9,3422.8,1.39760917]
[1641457922129,7.7865158,3422.9,3422.8,1.39760917]
[1641457922332,7.7865158,3422.9,3422.7,1.46047]
[1641457922535,7.7865158,3422.9,3421.0,1.99287019]
[1641457922536,4.11728057,3421.3,3421.0,1.99287019]
[1641457922736,1.29836785,3420.6,3419.6,12.79078455]
[1641457922936,1.46450277,3419.6,3418.4,3.06871539]
[1641457923136,1.46450277,3419.6,3418.4,1.81051539]
[1641457923335,1.46450277,3419.6,3415.9,52.24526552]
[1641457923336,0.66971341,3418.3,3415.9,52.24526552]
[1641457923535,0.73217,3416.8,3415.9,52.24526552]
[1641457923733,0.73217,3416.8,3415.9,40.52832552]
[1641457923734,18.26054262,3416.8,3415.9,40.52832552]
[1641457923934,15.6148205,3416.7,3415.9,21.10917296]
[1641457924179,15.6148205,3416.7,3416.5,8.38787003]
[1641457924180,19.32689,3416.6,3416.5,8.38787003]
[1641457924381,19.32689,3416.6,3416.5,2.52871003]
[1641457924583,19.32689,3416.6,3415.9,10.04035299]
[1641457924584,0.01226589,3416.0,3415.9,10.04035299]
[1641457924780,0.01226589,3416.0,3415.7,14.8279085]
[1641457924781,0.36326589,3416.0,3415.7,14.03337693]
[1641457924982,0.36326589,3416.0,3415.1,0.03152103]
[1641457924983,0.01226589,3416.0,3415.1,0.03152103]
[1641457925186,1.46418,3416.2,3415.8,0.00113685]
[1641457925380,1.46418,3416.2,3416.1,1.29464766]
[1641457925581,3.66039,3416.2,3415.2,0.01276378]
[1641457925784,0.00170527,3416.2,3415.2,0.01276378]
[1641457925983,3.5,3416.1,3415.2,0.01276378]
[1641457926381,3.5,3416.1,3415.3,0.00284212]
[1641457926382,0.00113685,3416.0,3415.3,0.00284212]
[1641457926583,1.64961068,3415.5,3415.3,0.00284212]
[1641457926983,3.5,3415.4,3415.2,0.00341054]
[1641457927184,3.5,3415.4,3414.1,0.1822]
[1641457927185,0.7322,3414.9,3414.2,0.00909478]
[1641457927384,0.7322,3414.9,3414.1,0.20204211]
[1641457927583,2.4930008,3414.8,3414.1,0.20204211]
[1641457927785,2.80041054,3414.8,3414.1,0.20204211]
[1641457928023,0.3,3414.3,3413.1,5.16946321]
[1641457928224,0.73235,3414.6,3413.1,1.22236321]
[1641457928225,0.73239,3414.1,3413.1,1.22236321]
[1641457928430,2.49713,3414.1,3413.8,0.00227369]
[1641457929124,0.73235,3413.9,3412.8,2.0]
[1641457929327,0.73235,3413.9,3412.1,0.01203953]
[1641457929328,5.22074425,3413.9,3413.7,2.0]
[1641457929529,4.48057249,3413.8,3413.7,2.0]
[1641457929728,4.48057249,3413.8,3412.9,0.00511581]
[1641457929930,4.39406944,3413.8,3412.9,0.00511581]
[1641457930129,2.19764,3413.5,3412.3,0.00852635]
[1641457930330,0.73262,3413.4,3412.3,0.00852635]
[1641457930531,0.351,3413.5,3412.3,0.00852635]
[1641457930532,6.0,3412.9,3412.3,0.00852635]
[1641457930730,6.0,3412.9,3412.2,0.95852635]
[1641457930731,6.9745,3412.9,3412.2,0.95852635]
[1641457931031,11.06856944,3412.9,3412.8,1.0]
[1641457931230,11.06856944,3412.9,3411.0,5.01897176]
[1641457931231,22.54757466,3412.9,3411.0,3.8279]
[1641457931431,0.2798,3412.1,3411.0,3.8279]
[1641457931705,0.01200818,3411.8,3411.5,0.00454739]
[1641457931889,0.74486818,3411.8,3411.7,1.0]
[1641457932091,0.00113685,3411.7,3409.9,0.00909478]
[1641457932290,14.2,3409.9,3407.4,0.92285097]
[1641457932492,18.6874305,3409.8,3406.1,0.02035638]
[1641457932692,0.3362,3406.8,3406.1,0.02035638]
[1641457932908,11.7099,3406.7,3405.0,18.1665224]
[1641457933091,0.01263776,3406.6,3405.0,18.1665224]
[1641457933292,11.7099,3406.5,3405.3,1.33185214]
[1641457933493,11.7099,3406.5,3405.0,12.1522424]
[1641457933494,1.76223888,3405.5,3405.0,12.1522424]
[1641457933796,12.09434872,3405.4,3405.1,0.00568423]
[1641457933992,12.09434872,3405.4,3405.3,1.0]
[1641457933993,11.83294872,3405.4,3405.3,1.0]
[1641457934197,0.73431,3405.6,3405.3,1.0]
[1641457934198,3.26092352,3405.6,3405.3,1.0]
[1641457934399,3.26092352,3405.6,3404.0,0.38252103]
[1641457934400,6.0,3405.6,3405.4,5.51598779]
[1641457934597,0.00227369,3405.5,3405.4,0.94050459]
[1641457934802,0.12147369,3405.5,3404.1,0.351]
[1641457934999,0.12787369,3405.5,3404.3,7.143e-05]
[1641457935301,6.0,3405.6,3404.3,7.143e-05]
[1641457935302,0.00170527,3405.4,3404.4,0.01618269]
[1641457935526,0.00170527,3405.4,3404.5,1.11244671]
[1641457935727,0.03400296,3405.4,3404.5,0.00341054]
[1641457935928,0.03400296,3405.4,3404.3,7.143e-05]
[1641457935929,0.03400296,3405.4,3405.2,1.0]
[1641457936129,0.03400296,3405.4,3404.3,7.143e-05]
[1641457936130,5.8732,3405.3,3404.4,0.00568424]
[1641457936331,4.09406944,3405.2,3404.4,0.00568424]
[1641457936529,0.73454,3405.0,3404.4,8.424e-05]
[1641457936727,10.09406944,3404.9,3404.4,8.424e-05]
[1641457936927,6.0,3404.9,3404.8,1.0]
[1641457937133,16.26726944,3404.9,3404.4,8.424e-05]
[1641457937327,16.26726944,3404.9,3403.9,1.874e-05]
[1641457937328,0.42218739,3404.8,3403.9,1.874e-05]
[1641457937528,14.2,3404.6,3402.4,0.01]
[1641457937727,14.2,3404.6,3404.0,7.369e-05]
[1641457937728,0.2772,3404.2,3404.0,7.369e-05]
[1641457937928,0.2772,3404.2,3402.4,0.01]
[1641457937929,0.2772,3404.2,3402.6,2.395e-05]
[1641457937931,6.2367889,3404.1,3402.6,2.395e-05]
[1641457938131,6.2367889,3404.1,3402.0,0.1]
[1641457938132,2.17887473,3402.2,3402.0,0.1]
[1641457938332,2.17887473,3402.2,3399.2,0.005]
[1641457938333,0.13819997,3402.4,3399.6,0.01293544]
[1641457938534,0.13819997,3402.4,3399.2,0.005]
[1641457938535,6.18582018,3402.2,3401.0,0.79584095]
[1641457938729,6.18582018,3402.2,3401.1,0.00568423]
[1641457938730,7.07842018,3402.2,3401.1,0.00568423]
[1641457939175,3.685e-05,3402.3,3401.2,1.35559494]
[1641457939377,3.29132,3404.3,3401.2,1.35559494]
[1641457939378,6.64532715,3404.1,3402.2,14.2]
[1641457939576,6.64532715,3404.1,3402.0,1.0]
[1641457939577,3.5,3404.6,3403.5,3.0]
[1641457939776,5.93880369,3405.1,3402.4,1.26271746]
[1641457939777,4.98157153,3404.1,3403.6,0.03152103]
[1641457939977,7.47326502,3403.9,3403.6,0.04442158]
[1641457940179,3.71833655,3404.1,3403.6,0.04442158]
[1641457940380,3.71833655,3404.1,3403.7,1.697459]
[1641457940579,3.71833655,3404.1,3403.8,4.44506944]
[1641457940580,0.0096632,3404.0,3403.8,4.44506944]
[1641457940783,6.32e-05,3404.0,3403.8,4.733]
[1641457940980,2.20379,3407.0,3403.8,4.733]
[1641457940981,9.478e-05,3403.9,3403.8,1.40920409]
[1641457941178,3.06948735,3405.8,3403.9,14.2]
[1641457941179,3.05747882,3405.8,3403.9,14.2]
[1641457941380,3.05746206,3406.7,3404.0,4.34897358]
[1641457941584,3.05746206,3406.7,3406.2,0.28251855]
[1641457941585,3.05721114,3406.7,3406.2,0.28251855]
[1641457941783,5.8712,3406.6,3406.3,0.351]
[1641457941978,5.8712,3406.6,3406.5,4.382]
[1641457942181,5.8712,3406.6,3406.5,4.733]
[1641457942779,5.88365776,3406.6,3405.9,1.31547843]
[1641457943029,5.8712,3406.6,3406.5,1.37509647]
[1641457943232,5.8712,3406.6,3406.5,2.02609647]
[1641457943233,5.8673,3406.6,3406.5,2.02609647]
[1641457943429,5.7854,3406.6,3406.5,10.88194497]
[1641457943630,5.7854,3406.6,3406.5,5.4582]
[1641457943631,4.9088,3406.6,3406.5,5.4582]
[1641457943831,2.0,3407.0,3406.5,0.94117992]
[1641457944030,2.0,3407.0,3406.7,1.78579546]
[1641457944235,0.01313694,3407.9,3406.8,2.351]
[1641457944433,2.0,3407.3,3406.8,2.351]
[1641457944631,1.24487891,3408.1,3407.8,1.0]
[1641457944932,1.24487891,3408.1,3407.5,0.351]
[1641457944933,2.0,3407.6,3407.5,0.351]
[1641457945331,3.01143166,3407.6,3407.5,0.351]
[1641457945530,2.01143166,3407.6,3407.5,0.351]
[1641457945731,2.01143166,3407.6,3407.4,0.8790587]
[1641457945932,2.01143166,3407.6,3407.5,0.351]
[1641457945933,0.01143166,3407.6,3407.5,0.351]
[1641457946131,2.0,3407.6,3407.5,0.351]
[1641457946532,2.0,3407.6,3407.5,0.651]
[1641457946774,5.8686,3408.0,3407.5,0.651]
[1641457946775,0.25,3408.0,3407.5,0.651]
[1641457946969,0.25,3408.0,3407.9,1.0]
[1641457947169,0.01291653,3409.3,3407.9,1.351]
[1641457947368,0.01291653,3409.3,3408.1,1.0]
[1641457947570,0.01938959,3409.0,3408.2,0.351]
[1641457947970,0.01291653,3409.3,3408.2,0.351]
[1641457947971,0.01882117,3408.9,3408.2,0.351]
[1641457948373,0.01825275,3408.8,3408.3,1.95123254]
[1641457948572,0.01825275,3408.8,3408.4,0.351]
[1641457948778,0.01768432,3408.7,3408.4,0.351]
[1641457949178,0.01253015,3408.5,3408.3,1.91382623]
[1641457949378,5.8804986,3408.4,3408.2,0.00018738]
[1641457949574,5.8676,3408.3,3408.2,0.00018738]
[1641457949776,11.75061063,3408.3,3408.2,0.00018738]
[1641457949978,12.05061063,3408.3,3405.9,0.38252103]
[1641457950176,12.30061063,3408.3,3408.1,1.0]
[1641457950432,0.01484221,3408.2,3408.1,1.0]
[1641457950630,11.75004221,3408.2,3408.1,3.09573857]
[1641457951832,11.75004221,3408.2,3408.1,2.09573857]
[1641457952331,11.75004221,3408.2,3408.1,10.89942002]